bitfinex-derivatives/quotes_ETHF0:USTF0_20250606
["timestamp","ask_amount","ask_price","bid_price","bid_amount"]
[1749187691486,0.81567,2450.8,2450.7,25.8337]
[1749187691681,2.08379714,2450.8,2450.7,32.2466]
[1749187691885,1.26812714,2450.8,2450.7,36.3213004]
[1749187692187,0.81564,2450.9,2450.7,37.1370004]
[1749187692482,0.81564,2450.9,2450.8,1.3236]
[1749187692685,2.08369471,2450.9,2450.8,5.3983004]
[1749187693481,0.81564,2450.9,2450.8,5.3983004]
[1749187693781,2.08381889,2450.9,2450.8,5.3983004]
[1749187693986,0.81567,2450.8,2450.7,24.684]
[1749187694274,2.08384889,2450.8,2450.7,29.824]
[1749187694984,2.08513452,2450.8,2450.7,29.824]
[1749187695792,2.08513452,2450.8,2450.7,31.1617]
[1749187697187,1.26946452,2450.8,2450.7,31.9774]
[1749187697488,1.26946452,2450.8,2450.7,36.0521004]
[1749187697690,2.08513452,2450.8,2450.7,35.2364004]
[1749187701392,2.08513452,2450.8,2450.7,30.0964004]
[1749187701692,2.08513452,2450.8,2450.7,35.2364004]
[1749187706199,2.08661207,2450.8,2450.7,35.2364004]
[1749187712299,2.08661207,2450.8,2450.7,10.5524004]
[1749187716608,2.08661207,2450.8,2450.7,10.5474004]
[1749187719409,2.08661207,2450.8,2450.7,6.4727]
[1749187720610,2.08661207,2450.8,2450.7,1.3377]
[1749187720818,2.08661207,2450.8,2450.7,6.4727]
[1749187721608,0.8157,2450.7,2450.6,0.00612232]
[1749187721812,0.81577,2450.5,2450.4,0.0088]
[1749187722012,2.08671207,2450.5,2450.4,0.0088]
[1749187723207,2.08814097,2450.5,2450.4,0.0088]
[1749187723615,0.81583,2450.3,2450.2,0.00612232]
[1749187723906,5.29600097,2450.3,2450.2,0.00612232]
[1749187724108,5.29656683,2450.3,2450.2,0.00612232]
[1749187724616,5.29656683,2450.3,2450.2,4.08082272]
[1749187727914,5.29656683,2450.3,2450.2,0.00612232]
[1749187730622,5.29656683,2450.3,2450.2,4.08082272]
[1749187731517,5.29656683,2450.3,2450.2,5.14212232]
[1749187732716,5.29656683,2450.3,2450.2,0.00612232]
[1749187741029,5.29656683,2450.3,2450.2,1.35812232]
[1749187741218,5.29656683,2450.3,2450.2,5.43282272]
[1749187746231,2.08876683,2450.3,2450.2,5.43282272]
[1749187754542,5.29656683,2450.3,2450.2,5.43282272]
[1749187757341,5.29656683,2450.3,2450.2,6.48512232]
[1749187758736,5.29656683,2450.3,2450.2,10.55982272]
[1749187763346,10.29656683,2450.3,2450.2,2.32e-06]
[1749187763548,13.5437528,2450.3,2450.2,2.32e-06]
[1749187764342,0.8159,2450.1,2450.0,150.0088]
[1749187764548,19.9949,2450.1,2450.0,150.0088]
[1749187764740,26.26783683,2450.1,2450.0,150.0088]
[1749187764945,26.82393683,2450.1,2450.0,150.0088]
[1749187765353,22.84043683,2450.1,2450.0,150.0088]
[1749187766847,2.08883683,2450.1,2450.0,150.0088]
[1749187767054,21.26783683,2450.1,2450.0,150.0088]
[1749187767256,2.08883683,2450.1,2450.0,150.0088]
[1749187770250,2.08883683,2450.1,2450.0,154.0835004]
[1749187770646,2.08883683,2450.1,2450.0,155.3797004]
[1749187770851,2.08883683,2450.1,2450.0,155.3709004]
[1749187777553,2.08883683,2450.1,2450.0,156.5435004]
[1749187782554,2.08818911,2450.1,2450.0,156.5435004]
[1749187784262,2.08830773,2450.1,2450.0,156.5435004]
[1749187785966,1.27240773,2450.1,2450.0,156.5435004]
[1749187786164,1.27240773,2450.1,2450.0,157.3594304]
[1749187786366,1.27240773,2450.1,2450.0,156.5435004]
[1749187790360,1.27240773,2450.1,2450.0,157.3594304]
[1749187791667,0.81587,2450.2,2450.0,157.3594304]
[1749187791866,0.81587,2450.2,2450.1,6.5600004]
[1749187792159,2.08550107,2450.2,2450.1,6.5600004]
[1749187792662,1.26963107,2450.2,2450.1,6.5600004]
[1749187792866,1.26963107,2450.2,2450.1,7.3759004]
[1749187794570,3.2078,2450.3,2450.2,0.81587]
[1749187794861,4.47743311,2450.3,2450.2,6.2475704]
[1749187797074,3.2078,2450.9,2450.8,0.81567]
[1749187797266,1.27011096,2450.9,2450.8,9.9933704]
[1749187797466,0.00612232,2451.4,2451.3,0.8155]
[1749187797667,0.00612232,2451.4,2451.3,9.9932004]
[1749187798572,0.00612232,2451.4,2451.3,11.0863004]
[1749187799073,0.00612232,2451.4,2451.3,12.2100004]
[1749187800273,0.82159232,2451.4,2451.3,11.3945004]
[1749187800470,0.82159232,2451.4,2451.3,5.1678004]
[1749187800670,0.82159232,2451.4,2451.3,10.2708004]
[1749187801273,0.00612232,2451.4,2451.3,10.2708004]
[1749187803985,0.00612232,2451.4,2451.3,11.6581004]
[1749187804985,0.82159232,2451.4,2451.3,11.6581004]
[1749187805182,0.07745583,2451.4,2451.3,11.6581004]
[1749187805583,0.89292583,2451.4,2451.3,11.6581004]
[1749187811093,0.89292583,2451.4,2451.3,6.5551004]
[1749187811289,0.89292583,2451.4,2451.3,11.6571004]
[1749187811693,0.89292583,2451.4,2451.3,4.0747004]
[1749187811898,0.89292583,2451.4,2451.2,0.0088]
[1749187811899,0.8155,2451.3,2451.2,0.0088]
[1749187812194,4.0233,2451.3,2451.2,5.1108]
[1749187815502,4.0233,2451.3,2451.2,0.0088]
[1749187815701,4.0233,2451.3,2451.2,5.1098]
[1749187818201,4.0233,2451.3,2451.2,0.0088]
[1749187818504,4.0233,2451.3,2450.7,5.101]
[1749187818505,0.81567,2450.8,2450.7,5.101]
[1749187818711,4.02347,2450.8,2450.7,5.101]
[1749187820197,3.2078,2450.8,2450.7,9.1757004]
[1749187820997,3.2078,2450.8,2450.7,11.3680004]
[1749187822405,3.2078,2450.8,2450.7,10.5523004]
[1749187822806,3.2078,2450.8,2450.7,11.3680004]
[1749187823411,0.81565,2450.9,2450.7,11.3680004]
[1749187823605,0.81565,2450.9,2450.8,3.6256]
[1749187823806,0.81565,2450.9,2450.8,7.7003004]
[1749187824708,0.81562,2451.0,2450.8,7.7003004]
[1749187825011,0.81562,2451.0,2450.9,1.3722]
[1749187825217,1.28544275,2451.0,2450.9,5.4469004]
[1749187825716,1.28544275,2451.0,2450.9,6.2625304]
[1749187825915,1.28544275,2451.1,2450.9,6.2625304]
[1749187826111,0.81558,2451.1,2450.8,3.06905]
[1749187826311,0.81558,2451.1,2451.0,4.0747004]
[1749187826511,2.1030899,2451.1,2451.0,4.0747004]
[1749187830520,2.1030899,2451.1,2451.0,9.1637004]
[1749187830914,0.81576,2450.6,2450.5,5.089]
[1749187831222,4.02356,2450.6,2450.5,9.1637004]
[1749187831419,5.3110699,2450.6,2450.5,9.1637004]
[1749187831717,4.4953099,2450.6,2450.5,9.1637004]
[1749187831921,4.4953099,2450.6,2450.5,9.9794704]
[1749187832123,4.4953099,2450.6,2450.5,9.1637004]
[1749187832325,5.3110399,2450.6,2450.5,4.0747004]
[1749187832524,5.3110399,2450.6,2450.5,9.1637004]
[1749187833924,4.4953099,2450.6,2450.5,9.1637004]
[1749187834124,5.3110399,2450.6,2450.5,9.1637004]
[1749187835324,5.3110399,2450.6,2450.5,4.0747004]
[1749187835524,0.8159,2450.1,2450.0,150.0]
[1749187835718,4.0237,2450.1,2450.0,150.0]
[1749187835923,5.3112099,2450.1,2450.0,150.0]
[1749187837021,4.4953099,2450.1,2450.0,154.0747004]
[1749187837221,5.3112099,2450.1,2450.0,154.0747004]
[1749187838825,5.3112099,2450.1,2450.0,150.0]
[1749187840725,4.0237,2450.1,2450.0,150.0]
[1749187841725,5.30424991,2450.1,2450.0,150.0]
[1749187843727,4.0237,2450.1,2450.0,150.0]
[1749187848834,5.30364941,2450.1,2450.0,150.0]
[1749187849434,4.0237,2450.1,2450.0,150.0]
[1749187854034,5.30505342,2450.1,2450.0,150.0]
[1749187854340,5.30527389,2450.1,2450.0,150.0]
[1749187869158,4.48937389,2450.1,2450.0,154.0747004]
[1749187869358,3.2078,2450.5,2450.0,159.0747004]
[1749187869559,3.2078,2450.2,2450.1,1.3393]
[1749187869764,4.02367,2450.2,2450.1,5.4140004]
[1749187870061,3.2078,2450.2,2450.1,5.4140004]
[1749187870261,4.02367,2450.2,2450.1,5.4140004]
[1749187872064,4.02367,2450.2,2450.1,1.3393]
[1749187875267,0.8159,2450.1,2450.0,148.35704138]
[1749187875465,19.9239,2450.1,2450.0,148.35704138]
[1749187875665,20.9963,2450.1,2450.0,148.35704138]
[1749187876862,25.9963,2450.1,2450.0,136.63508405]
[1749187877062,30.26066357,2450.1,2450.0,126.95802563]
[1749187877269,30.66793902,2450.1,2450.0,123.59265563]
[1749187877563,27.42257545,2450.1,2450.0,119.37792663]
[1749187877968,27.42257545,2450.1,2450.0,117.57370663]
[1749187878169,27.42257545,2450.1,2450.0,114.00672663]
[1749187878466,30.6643675,2450.1,2450.0,110.72744663]
[1749187878665,30.66438541,2450.1,2450.0,110.72744663]
[1749187878862,27.42257545,2450.1,2450.0,110.72744663]
[1749187879063,27.42257545,2450.1,2450.0,106.67604664]
[1749187879264,30.66272971,2450.1,2450.0,101.64706773]
[1749187879470,30.66272971,2450.1,2450.0,101.43646773]
[1749187879663,30.63037545,2450.1,2450.0,79.72285989]
[1749187879865,30.63037545,2450.1,2450.0,64.53107301]
[1749187880078,30.63037545,2450.1,2450.0,54.13958296]
[1749187880373,34.67472632,2450.1,2450.0,41.45540656]
[1749187880566,34.67472632,2450.1,2450.0,41.17793045]
[1749187880870,11.52237545,2450.1,2450.0,7.82336928]
[1749187881169,15.56413447,2450.1,2450.0,0.92221928]
[1749187881366,40.12109852,2450.1,2450.0,9.28e-06]
[1749187881565,40.12113243,2450.1,2450.0,9.28e-06]
[1749187881765,36.88917929,2450.1,2450.0,9.28e-06]
[1749187882369,0.81623,2449.1,2449.0,1.3107]
[1749187882667,0.8163,2448.9,2448.8,1.115]
[1749187882867,1.99710384,2448.9,2448.8,1.115]
[1749187885065,1.18080384,2448.9,2448.8,1.115]
[1749187885268,22.3148,2449.1,2448.8,1.115]
[1749187885468,1.18939884,2449.0,2448.9,1.3463]
[1749187885668,2.00568884,2449.0,2448.9,1.3463]
[1749187886474,0.81629,2449.0,2448.9,1.3463]
[1749187886775,2.00498667,2449.0,2448.9,1.3463]
[1749187887274,0.8163,2448.9,2448.8,1.115]
[1749187888474,2.00403444,2448.9,2448.8,1.115]
[1749187888877,0.8163,2448.9,2448.8,1.115]
[1749187889674,0.8163,2448.9,2447.4,0.35698018]
[1749187889675,9.41752081,2448.9,2447.4,0.35698018]
[1749187889873,0.81672,2447.7,2447.6,4.0747004]
[1749187890069,0.82275232,2447.9,2447.8,4.0747004]
[1749187890265,0.00612232,2447.9,2447.8,4.0747004]
[1749187890572,0.00612232,2447.9,2447.8,25.1971004]
[1749187890970,0.00612232,2447.9,2447.8,27.2715704]
[1749187891277,24.18,2448.7,2448.4,4.0747004]
[1749187891477,2.00180361,2448.6,2448.5,1.2578]
[1749187891668,0.8164,2448.6,2448.5,7.3802]
[1749187891976,0.81638,2448.7,2448.5,7.3802]
[1749187892274,0.81638,2448.7,2448.6,1.2578]
[1749187892475,2.00146499,2448.7,2448.6,1.2578]
[1749187892983,0.81638,2448.7,2448.6,1.2578]
[1749187894176,5.07812232,2448.8,2448.6,1.2578]
[1749187894377,0.00612232,2448.8,2448.7,10.1971004]
[1749187894575,0.00612232,2448.8,2448.7,11.5938004]
[1749187894777,0.00612232,2448.8,2448.7,15.93047808]
[1749187895682,0.82245232,2448.8,2448.7,15.93047808]
[1749187896381,0.00612232,2448.8,2448.7,15.93047808]
[1749187896769,0.00612232,2448.8,2448.7,19.95464808]
[1749187897175,0.00612232,2448.8,2448.7,24.95464808]
[1749187898478,0.00612232,2448.8,2448.7,19.95464808]
[1749187899875,4.02399,2449.3,2448.8,0.81631]
[1749187900072,4.02399,2449.3,2449.1,4.0747004]
[1749187900273,4.02399,2449.3,2449.2,7.4384]
[1749187900677,4.02399,2449.3,2449.2,1.316]
[1749187901271,1.99881168,2449.3,2449.2,1.316]
[1749187901475,0.81619,2449.3,2449.2,1.316]
[1749187901681,1.99871791,2449.3,2449.2,1.316]
[1749187902372,1.99871791,2449.3,2449.2,7.4384]
[1749187903183,0.82224232,2449.5,2449.2,15.84977808]
[1749187903383,0.81613,2449.4,2449.3,12.6046004]
[1749187903784,0.81613,2449.4,2449.3,16.94127808]
[1749187904480,2.00079748,2449.4,2449.3,16.94127808]
[1749187904676,2.00088037,2449.4,2449.3,16.94127808]
[1749187905591,1.18475037,2449.4,2449.3,16.94127808]
[1749187907480,1.18475037,2449.4,2449.3,20.14907808]
[1749187907890,1.18475037,2449.4,2449.3,20.96524808]
[1749187908089,1.18475037,2449.4,2449.3,20.14907808]
[1749187908686,1.18475037,2449.4,2449.3,20.96524808]
[1749187908887,0.00612232,2449.5,2449.3,20.96522808]
[1749187909087,0.00612232,2449.5,2449.4,11.4890004]
[1749187909289,1.19391031,2449.5,2449.4,11.4890004]
[1749187909490,1.19391031,2449.5,2449.4,16.64180808]
[1749187909792,1.19391031,2449.5,2449.4,15.82567808]
[1749187910801,0.00612232,2449.5,2449.4,16.64180808]
[1749187911094,1.18987945,2449.5,2449.4,15.82567808]
[1749187911296,0.00612232,2449.5,2449.4,15.82567808]
[1749187911495,0.00612232,2449.5,2449.4,16.64180808]
[1749187911800,3.2078,2450.5,2449.4,10.3666004]
[1749187911991,1.18375413,2450.4,2450.1,4.0747004]
[1749187912192,1.18375413,2450.3,2450.2,3.6177]
[1749187912395,1.99958413,2450.3,2450.2,3.6177]
[1749187913294,1.99958413,2450.3,2450.2,2.5494]
[1749187913493,1.99958413,2450.3,2450.2,8.671]
[1749187913894,1.99958413,2450.3,2450.2,7.3052]
[1749187921907,1.99958413,2450.3,2450.2,6.1216]
[1749187922309,0.81603,2449.7,2449.6,1.2851]
[1749187922518,0.81603,2449.7,2449.6,7.4075]
[1749187922711,0.81603,2449.7,2449.6,15.81887808]
[1749187923414,0.81603,2449.7,2449.6,6.1224]
[1749187923615,1.99993835,2449.7,2449.6,6.1224]
[1749187924117,0.8161,2449.5,2449.4,0.00612232]
[1749187924413,3.2078,2449.9,2449.5,6.1224]
[1749187924612,2.00022403,2449.8,2449.6,5.4238004]
[1749187924819,2.00023403,2449.7,2449.6,8.6196]
[1749187925116,2.00023403,2449.7,2449.6,2.4972]
[1749187925418,1.18420403,2449.7,2449.6,12.6943004]
[1749187925711,1.18420403,2449.8,2449.6,12.6943004]
[1749187925916,2.00020403,2449.8,2449.7,6.1224]
[1749187926518,0.81603,2449.7,2449.6,6.5719004]
[1749187926716,0.8161,2449.5,2449.4,0.00612232]
[1749187926918,4.39200403,2449.5,2449.4,0.00612232]
[1749187927213,4.39200403,2449.5,2449.4,6.12852232]
[1749187927620,5.20810403,2449.5,2449.4,6.12852232]
[1749187927919,5.20810403,2449.5,2449.4,14.5399004]
[1749187928507,1.18420403,2449.5,2449.4,14.5399004]
[1749187928911,1.18420403,2449.5,2449.4,15.3560304]
[1749187929123,5.061,2450.0,2449.4,18.1187004]
[1749187929417,1.18531975,2449.9,2449.8,4.0747004]
[1749187929819,1.18531975,2449.9,2449.8,14.53377808]
[1749187930820,1.18531975,2449.9,2449.8,15.68747808]
[1749187932917,1.18531975,2449.9,2449.8,7.2761]
[1749187932918,2.00128975,2449.9,2449.8,7.2761]
[1749187933123,1.18531975,2449.9,2449.5,5.061]
[1749187933315,5.20913975,2449.8,2449.7,4.0747004]
[1749187933811,5.20913975,2449.8,2449.7,6.1224]
[1749187934013,0.8161,2449.5,2449.4,0.00612232]
[1749187934214,2.00141975,2449.5,2449.4,0.00612232]
[1749187936121,1.18531975,2449.5,2449.4,0.00612232]
[1749187936322,2.00141975,2449.5,2449.4,0.00612232]
[1749187937025,2.00141975,2449.5,2449.4,1.36192232]
[1749187937326,2.00141975,2449.5,2449.4,0.00612232]
[1749187942529,2.00141975,2449.5,2449.4,6.12852232]
[1749187944126,2.00141975,2449.5,2449.4,0.00612232]
[1749187944424,2.00141975,2449.5,2449.4,7.48942232]
[1749187946828,5.20921975,2449.5,2449.4,7.48942232]
[1749187947126,5.20921975,2449.5,2449.4,0.00612232]
[1749187948431,5.20921975,2449.5,2449.4,6.12852232]
[1749187949823,5.20921975,2449.5,2449.4,0.00612232]
[1749187950522,5.20921975,2449.5,2449.4,1.30152232]
[1749187951528,5.20921975,2449.5,2449.4,0.00612232]
[1749187951730,1.18531975,2449.5,2449.4,14.5399004]
[1749187951926,1.18531975,2449.5,2449.4,17.0081004]
[1749187952828,1.18531975,2449.5,2449.4,17.8242304]
[1749187953223,1.18531975,2449.5,2449.4,22.8242304]
[1749187954034,1.18531975,2449.5,2449.4,22.0081004]
[1749187954930,1.18531975,2449.5,2449.4,22.8242304]
[1749187955232,0.81599,2449.9,2449.4,22.8242304]
[1749187955432,0.81599,2449.9,2449.8,4.0747004]
[1749187955639,2.00132523,2449.9,2449.8,4.0747004]
[1749187955932,2.00132523,2449.9,2449.8,14.53377808]
[1749187956732,2.00132523,2449.9,2449.8,15.88807808]
[1749187957437,1.18533523,2449.9,2449.8,15.88807808]
[1749187957634,2.00129523,2449.9,2449.8,15.88807808]
[1749187958835,1.18533523,2449.9,2449.8,15.88807808]
[1749187959740,2.00130523,2449.9,2449.8,15.88807808]
[1749187960142,1.18533523,2449.9,2449.8,15.88807808]
[1749187960342,2.00130523,2449.9,2449.8,15.88807808]
[1749187962742,1.18533523,2449.9,2449.8,15.88807808]
[1749187969955,1.1885038,2449.9,2449.8,15.88807808]
[1749187980260,1.1885038,2449.9,2449.8,16.70407808]
[1749187980562,1.1885038,2449.9,2449.8,10.58167808]
[1749187980763,0.81586,2450.3,2449.8,10.58167808]
[1749187980953,4.0237,2450.1,2450.0,4.0747004]
[1749187981159,5.21423356,2450.1,2450.0,4.0747004]
[1749187981359,0.81595,2450.0,2449.7,2.4858]
[1749187981663,1.19053356,2449.9,2449.8,7.4893]
[1749187982262,1.19053356,2449.9,2449.8,15.90067808]
[1749187985363,1.19053356,2450.0,2449.8,15.90067808]
[1749187985561,4.02371,2450.1,2450.0,4.0747004]
[1749187985761,5.23078307,2450.1,2450.0,4.0747004]
[1749187986063,5.23078307,2450.1,2450.0,6.1224]
[1749187986363,0.81597,2449.9,2449.7,1.1172]
[1749187986563,0.81597,2449.9,2449.8,6.1224]
[1749187986763,2.02302327,2449.9,2449.8,6.1224]
[1749187986968,0.81603,2449.7,2449.6,4.4877]
[1749187987160,2.02308327,2449.7,2449.6,4.4877]
[1749187987458,0.81607,2449.6,2449.4,0.00612232]
[1749187987762,0.81607,2449.6,2449.5,10.1971004]
[1749187987965,2.02269222,2449.6,2449.5,6.1224]
[1749187988167,1.20662222,2449.6,2449.5,6.1224]
[1749187988864,2.02268222,2449.6,2449.5,7.5044]
[1749187989063,1.20662222,2449.6,2449.5,7.5044]
[1749187990569,2.02268222,2449.6,2449.5,7.5044]
[1749187990868,1.20662222,2449.6,2449.5,7.5044]
[1749187991163,1.20662222,2449.6,2449.5,6.1224]
[1749187991164,2.02268222,2449.6,2449.5,6.1224]
[1749187993871,1.20662222,2449.6,2449.5,6.1224]
[1749187994172,1.20662222,2449.6,2449.5,7.5158]
[1749187994572,2.02268222,2449.6,2449.5,7.5158]
[1749187995062,0.8161,2449.5,2449.4,0.00612232]
[1749187995266,7.44422222,2449.5,2449.4,0.00612232]
[1749187997567,2.02272222,2449.5,2449.4,6.12852232]
[1749187998171,2.02272222,2449.5,2449.4,10.20322272]
[1749188001377,2.01880584,2449.5,2449.4,10.20322272]
[1749188003773,1.20270584,2449.5,2449.4,14.5399004]
[1749188003975,1.20270584,2449.5,2449.4,17.7477004]
[1749188004175,0.81595,2450.0,2449.4,17.7477004]
[1749188004366,2.01926364,2449.9,2449.8,4.0747004]
[1749188004772,2.01926364,2449.9,2449.8,6.1224]
[1749188005283,1.20329364,2449.9,2449.8,6.1224]
[1749188005584,2.01925364,2449.9,2449.8,6.1224]
[1749188007176,1.20329364,2449.9,2449.8,6.1224]
[1749188007482,1.20329364,2449.9,2449.8,14.53377808]
[1749188008078,8.2518,2450.4,2449.8,14.53377808]
[1749188008079,3.2078,2450.4,2449.8,20.83317808]
[1749188008284,0.00612232,2450.5,2450.4,0.8158]
[1749188008477,3.2078,2451.3,2450.5,0.81576]
[1749188008680,4.3178,2451.6,2451.2,4.0747004]
[1749188008978,3.2078,2451.6,2451.3,5.3725004]
[1749188009182,0.81547,2451.4,2451.3,5.3725004]
[1749188009591,0.81543,2451.5,2451.3,15.82837808]
[1749188009881,0.81543,2451.5,2451.4,10.1939004]
[1749188010085,3.21392232,2451.6,2451.4,11.4917004]
[1749188010286,3.21392232,2451.6,2451.5,10.1931004]
[1749188010484,4.02932232,2451.6,2451.5,6.1184]
[1749188011184,0.82152232,2451.6,2451.5,6.1184]
[1749188013283,0.00612232,2451.6,2451.2,2.4692]
[1749188013483,0.81547,2451.4,2451.3,6.1192]
[1749188013682,0.81547,2451.4,2451.3,7.4796]
[1749188015884,0.81547,2451.4,2451.3,11.5543004]
[1749188016080,3.21392232,2451.6,2451.3,11.5543004]
[1749188016285,0.81543,2451.5,2451.4,6.1192]
[1749188016486,0.81543,2451.5,2451.4,7.4214]
[1749188021597,0.81543,2451.5,2451.4,15.83277808]
[1749188021891,0.89286583,2451.6,2451.4,15.83277808]
[1749188022198,0.89286583,2451.6,2451.5,10.1931004]
[1749188022393,0.89286583,2451.6,2451.5,11.7211004]
[1749188022694,0.89286583,2451.6,2451.5,7.6464]
[1749188028594,0.89286583,2451.6,2451.5,11.7211004]
[1749188030198,0.89286583,2451.6,2451.5,16.05777808]
[1749188030395,0.07745583,2451.6,2451.5,16.05777808]
[1749188030599,5.2676764,2452.6,2451.5,16.05777808]
[1749188030600,5.24554,2452.6,2452.2,4.0747004]
[1749188030900,0.81517,2452.3,2452.2,4.0747004]
[1749188031303,0.81527,2452.0,2451.9,1.5916]
[1749188031595,0.81527,2452.0,2451.9,6.1168]
[1749188031801,0.81537,2451.7,2451.6,1.5276]
[1749188032002,0.81537,2451.7,2451.6,5.6023004]
[1749188032202,0.81537,2451.7,2451.6,7.646]
[1749188034398,2.01089139,2451.7,2451.6,7.646]
[1749188038897,1.19552139,2451.7,2451.6,7.646]
[1749188039098,2.01088139,2451.7,2451.6,7.646]
[1749188040308,2.01088139,2451.7,2451.6,12.03440808]
[1749188043914,1.19552139,2451.7,2451.6,12.03440808]
[1749188044509,2.01089139,2451.7,2451.6,12.03440808]
[1749188045210,1.19552139,2451.7,2451.6,12.03440808]
[1749188045608,1.2668549,2451.7,2451.6,12.03440808]
[1749188046314,2.0822249,2451.7,2451.6,12.03440808]
[1749188047015,1.2668549,2451.7,2451.6,15.24220808]
[1749188049316,1.2668549,2451.7,2451.6,12.03440808]
[1749188049517,1.2668549,2451.7,2451.6,15.24220808]
[1749188050713,2.0822249,2451.7,2451.6,15.24220808]
[1749188050914,1.2668549,2451.7,2451.6,15.24220808]
[1749188052220,2.0822249,2451.7,2451.6,16.77950808]
[1749188053918,1.2668549,2451.7,2451.6,16.77950808]
[1749188054522,2.09161732,2451.7,2451.6,16.77950808]
[1749188055324,1.27625732,2451.7,2451.6,16.77950808]
[1749188056411,2.09161732,2451.7,2451.6,16.77950808]
[1749188056719,1.27625732,2451.7,2451.6,16.77950808]
[1749188056921,1.27625732,2451.7,2451.6,17.59490808]
[1749188057215,0.00612232,2452.2,2451.8,0.81532]
[1749188057420,0.00612232,2452.2,2452.1,10.1923004]
[1749188057615,0.82132232,2452.2,2452.1,10.1923004]
[1749188057820,0.82132232,2452.2,2452.1,13.54120808]
[1749188058409,0.00612232,2452.2,2452.1,13.54120808]
[1749188059719,0.07745583,2452.2,2452.1,13.54120808]
[1749188060613,0.89265583,2452.2,2452.1,13.54120808]
[1749188061518,0.07745583,2452.2,2452.1,13.54120808]
[1749188063527,0.89265583,2452.2,2452.1,13.54120808]
[1749188068128,0.07745583,2452.2,2452.1,13.54120808]
[1749188068328,0.89265583,2452.2,2452.1,13.54120808]
[1749188068528,0.07745583,2452.2,2452.1,13.54120808]
[1749188069530,2.08482042,2452.2,2452.1,13.54120808]
[1749188070325,1.26962042,2452.2,2452.1,13.54120808]
[1749188070526,2.08482042,2452.2,2452.1,13.54120808]
[1749188070829,1.26962042,2452.2,2452.1,13.54120808]
[1749188071727,2.08482042,2452.2,2452.1,13.54120808]
[1749188073133,1.26962042,2452.2,2452.1,13.54120808]
[1749188074533,1.26962042,2452.2,2452.1,13.54040808]
[1749188075132,2.08482042,2452.2,2452.1,13.54040808]
[1749188075634,1.26962042,2452.2,2452.1,13.54040808]
[1749188077137,2.08482042,2452.2,2452.1,13.54040808]
[1749188077339,1.26962042,2452.2,2452.1,13.54040808]
[1749188078036,2.08482042,2452.2,2452.1,13.54040808]
[1749188078337,2.08482042,2452.2,2452.1,6.1168]
[1749188079435,9.47742042,2452.2,2451.9,0.0874]
[1749188079638,0.81527,2452.0,2451.9,0.0874]
[1749188079831,2.00743459,2452.0,2451.9,0.0874]
[1749188080033,0.81537,2451.7,2451.6,3.2078]
[1749188080637,0.81537,2451.7,2451.6,9.3262]
[1749188080837,2.00753459,2451.7,2451.6,9.3262]
[1749188081035,3.58513459,2451.7,2451.6,9.3262]
[1749188081432,3.58513459,2451.7,2451.6,6.1184]
[1749188082841,2.76976459,2451.7,2451.6,6.1184]
[1749188083536,3.58513459,2451.7,2451.6,6.1184]
[1749188084836,1.19216459,2451.7,2451.6,10.1931004]
[1749188085337,1.19216459,2451.7,2451.6,13.2893004]
[1749188085842,2.00753459,2451.7,2451.6,13.2893004]
[1749188086842,1.19216459,2451.7,2451.6,13.2893004]
[1749188087038,2.00753459,2451.7,2451.6,13.2893004]
[1749188087449,1.19216459,2451.7,2451.6,13.2893004]
[1749188089647,1.19216459,2451.7,2451.6,13.60300808]
[1749188091346,0.88664351,2451.9,2451.6,13.60300808]
[1749188091646,0.88664351,2451.9,2451.8,4.0747004]
[1749188092037,1.26312164,2451.9,2451.8,7.669]
[1749188092242,1.19178813,2451.9,2451.8,11.7437004]
[1749188092745,1.19178813,2451.9,2451.8,12.05740808]
[1749188093142,1.19178813,2451.9,2451.8,15.26520808]
[1749188094346,1.19178813,2452.0,2451.8,15.26520808]
[1749188094546,1.19178813,2451.9,2451.8,3.52150768]
[1749188094742,2.0072821,2452.0,2451.9,10.1923004]
[1749188094947,2.00727855,2452.0,2451.9,10.1923004]
[1749188096446,1.19200855,2452.0,2451.9,10.1923004]
[1749188096645,2.00727855,2452.0,2451.9,10.1923004]
[1749188097542,1.19200855,2452.0,2451.9,10.1923004]
[1749188097748,0.8153,2451.9,2451.8,3.2078]
[1749188097948,3.46800855,2451.9,2451.8,3.2078]
[1749188098457,2.00730855,2451.9,2451.8,9.3254]
[1749188101965,1.19200855,2451.9,2451.8,9.3254]
[1749188102266,1.19200855,2451.9,2451.8,13.4001004]
[1749188103060,1.19200855,2451.9,2451.8,13.71380808]
[1749188103261,1.19200855,2452.1,2451.8,13.71380808]
[1749188103458,1.19200855,2452.0,2451.9,10.1923004]
[1749188103665,1.19200855,2452.1,2451.9,6.1176]
[1749188103865,1.19200855,2452.0,2451.9,0.31370768]
[1749188104161,1.19200855,2452.1,2451.9,6.43130768]
[1749188104365,1.19200855,2452.0,2451.9,0.31370768]
[1749188104759,1.19200855,2452.0,2451.9,10.50600808]
[1749188105657,1.19200855,2452.1,2451.9,16.32127808]
[1749188105857,1.19200855,2452.0,2451.9,5.31370768]
[1749188106062,2.00778651,2452.1,2452.0,6.1176]
[1749188106264,2.00778898,2452.1,2452.0,10.50600808]
[1749188106967,1.19255898,2452.1,2452.0,10.50600808]
[1749188107165,1.19255898,2452.1,2452.0,11.99610808]
[1749188110867,2.00778898,2452.1,2452.0,11.99610808]
[1749188111073,0.8153,2451.9,2451.8,3.2078]
[1749188111269,3.47965425,2452.0,2451.9,6.1176]
[1749188111570,3.47961263,2452.0,2451.9,6.1176]
[1749188111770,2.00711263,2452.0,2451.9,6.1176]
[1749188113072,1.19182263,2452.0,2451.9,10.50600808]
[1749188113275,1.19182263,2452.0,2451.9,12.01110808]
[1749188113570,1.26315614,2452.0,2451.9,12.01110808]
[1749188114173,1.26315614,2452.0,2451.9,13.55070808]
[1749188114672,1.19182263,2452.0,2451.9,13.55070808]
[1749188116476,2.00709263,2452.0,2451.9,13.55070808]
[1749188117676,1.26315614,2452.0,2451.9,13.55070808]
[1749188118668,1.19182263,2452.0,2451.9,13.55070808]
[1749188118980,0.00612232,2452.2,2452.0,0.81526]
[1749188119279,0.00612232,2452.2,2452.1,14.9847004]
[1749188119477,1.19922139,2452.2,2452.1,15.7999304]
[1749188119669,0.00612232,2452.2,2452.1,16.11363808]
[1749188120378,0.00612232,2452.2,2452.1,15.29840808]
[1749188120978,0.00612232,2452.2,2452.1,15.59950808]
[1749188121173,0.00612232,2452.2,2452.1,16.41473808]
[1749188121879,0.00612232,2452.2,2452.1,15.59950808]
[1749188122478,0.00612232,2452.2,2452.1,16.41473808]
[1749188124375,0.00612232,2452.2,2452.1,16.1010304]
[1749188124577,0.00612232,2452.2,2452.1,15.59950808]
[1749188129584,0.00612232,2452.2,2452.1,16.41473808]